[Event "*** Titled Tuesday Blitz"]
[Site "Chess.com"]
[Date "2021.04.20"]
[Round "1"]
[White "Majesth"]
[Black "MIJuanReyesRosa"]
[Result "1-0"]
[WhiteElo "2484"]
[BlackElo "2019"]
[TimeControl "180+1"]
[EndTime "10:08:13 PDT"]
[Termination "Majesth won by checkmate"]

1. d4 {[%clk 0:02:58]} 1... e6 {[%clk 0:02:59.2]} 2. e4 {[%clk 0:02:55]} 2... c5
{[%clk 0:02:56.3]} 3. d5 {[%clk 0:02:53]} 3... Nf6 {[%clk 0:02:55.3]} 4. Nc3
{[%clk 0:02:51.5]} 4... d6 {[%clk 0:02:55.3]} 5. Bb5+ {[%clk 0:02:49.8]} 5...
Bd7 {[%clk 0:02:50.9]} 6. a4 {[%clk 0:02:45.2]} 6... Be7 {[%clk 0:02:28.9]} 7.
dxe6 {[%clk 0:02:41.4]} 7... fxe6 {[%clk 0:02:24.9]} 8. e5 {[%clk 0:02:41.8]}
8... dxe5 {[%clk 0:02:22.3]} 9. Nf3 {[%clk 0:02:42.2]} 9... Nc6 {[%clk 0:02:18]}
10. O-O {[%clk 0:02:41.3]} 10... O-O {[%clk 0:02:15]} 11. Bxc6 {[%clk
0:02:37.6]} 11... Bxc6 {[%clk 0:02:12.8]} 12. Nxe5 {[%clk 0:02:38]} 12... Qxd1
{[%clk 0:02:09]} 13. Rxd1 {[%clk 0:02:38.9]} 13... Rfd8 {[%clk 0:02:07.1]} 14.
Bg5 {[%clk 0:02:19.8]} 14... Rxd1+ {[%clk 0:02:02.9]} 15. Rxd1 {[%clk
0:02:20.7]} 15... Be8 {[%clk 0:01:53.9]} 16. Nb5 {[%clk 0:02:02.1]} 16... h6
{[%clk 0:01:50.4]} 17. Nc7 {[%clk 0:01:51.7]} 17... Rc8 {[%clk 0:01:46.1]} 18.
Nxe8 {[%clk 0:01:50]} 18... hxg5 {[%clk 0:01:29.8]} 19. Nxf6+ {[%clk 0:01:48.6]}
19... gxf6 {[%clk 0:01:27.6]} 20. Rd7 {[%clk 0:01:26.1]} 20... Rd8 {[%clk
0:01:20.5]} 21. Rxd8+ {[%clk 0:01:25.4]} 21... Bxd8 {[%clk 0:01:18.4]} 22. Nd7
{[%clk 0:01:19.5]} 22... Be7 {[%clk 0:01:13.6]} 23. a5 {[%clk 0:01:17]} 23...
Kg7 {[%clk 0:01:05.6]} 24. a6 {[%clk 0:01:14]} 24... bxa6 {[%clk 0:01:00.7]} 25.
Nb8 {[%clk 0:01:13.9]} 25... Bd6 {[%clk 0:00:55.3]} 26. Nc6 {[%clk 0:00:56.7]}
26... Bc7 {[%clk 0:00:51.9]} 27. Nxa7 {[%clk 0:00:44.5]} 27... Kf7 {[%clk
0:00:47.2]} 28. g3 {[%clk 0:00:30.5]} 28... g4 {[%clk 0:00:45.4]} 29. Kg2 {[%clk
0:00:27.9]} 29... Ke8 {[%clk 0:00:42.5]} 30. f3 {[%clk 0:00:21.2]} 30... Kd7
{[%clk 0:00:42]} 31. c4 {[%clk 0:00:06.4]} 31... gxf3+ {[%clk 0:00:36.7]} 32.
Kxf3 {[%clk 0:00:03.5]} 32... Bb6 {[%clk 0:00:36.5]} 33. Nb5 {[%clk 0:00:04]}
33... axb5 {[%clk 0:00:34.4]} 34. cxb5 {[%clk 0:00:04.9]} 34... c4 {[%clk
0:00:32.3]} 35. g4 {[%clk 0:00:04.6]} 35... Kd6 {[%clk 0:00:31.8]} 36. Ke4
{[%clk 0:00:04.8]} 36... Kc5 {[%clk 0:00:31.5]} 37. h4 {[%clk 0:00:04.5]} 37...
Kb4 {[%clk 0:00:31]} 38. g5 {[%clk 0:00:05.4]} 38... fxg5 {[%clk 0:00:30.8]} 39.
hxg5 {[%clk 0:00:06.3]} 39... Bc5 {[%clk 0:00:29.3]} 40. g6 {[%clk 0:00:06.3]}
40... Bf8 {[%clk 0:00:29.1]} 41. b6 {[%clk 0:00:05.5]} 41... Kb3 {[%clk
0:00:23.3]} 42. b7 {[%clk 0:00:05.5]} 42... Bd6 {[%clk 0:00:23.4]} 43. g7 {[%clk
0:00:05.2]} 43... Kxb2 {[%clk 0:00:23.6]} 44. g8=Q {[%clk 0:00:06.1]} 44... c3
{[%clk 0:00:23.8]} 45. Qxe6 {[%clk 0:00:03.9]} 45... c2 {[%clk 0:00:22.5]} 46.
Qxd6 {[%clk 0:00:03.5]} 46... c1=Q {[%clk 0:00:22.2]} 47. b8=Q+ {[%clk
0:00:04.4]} 47... Ka1 {[%clk 0:00:21]} 48. Qa6+ {[%clk 0:00:03.6]} 48... Qa3
{[%clk 0:00:04.8]} 49. Qxa3# {[%clk 0:00:04.5]} 1-0

[Event "*** Titled Tuesday Blitz"]
[Site "Chess.com"]
[Date "2021.04.20"]
[Round "1"]
[White "Smile2005"]
[Black "NikolaGry"]
[Result "0-1"]
[WhiteElo "2384"]
[BlackElo "2705"]
[TimeControl "180+1"]
[EndTime "10:08:14 PDT"]
[Termination "NikolaGry won by checkmate"]

1. Nf3 {[%clk 0:03:00.2]} 1... c5 {[%clk 0:02:59]} 2. g3 {[%clk 0:03:01.1]} 2...
b6 {[%clk 0:02:58.6]} 3. Bg2 {[%clk 0:03:02]} 3... Bb7 {[%clk 0:02:59.2]} 4. O-O
{[%clk 0:03:02.9]} 4... Nf6 {[%clk 0:02:59.5]} 5. d3 {[%clk 0:03:03.3]} 5... e6
{[%clk 0:02:58.4]} 6. Nbd2 {[%clk 0:03:04.2]} 6... d6 {[%clk 0:02:57.8]} 7. e4
{[%clk 0:03:05.1]} 7... Nbd7 {[%clk 0:02:57.8]} 8. c3 {[%clk 0:03:05.8]} 8...
Be7 {[%clk 0:02:57.2]} 9. a4 {[%clk 0:03:06.2]} 9... a6 {[%clk 0:02:56.8]} 10.
Re1 {[%clk 0:03:04.6]} 10... O-O {[%clk 0:02:56.1]} 11. d4 {[%clk 0:03:04.1]}
11... cxd4 {[%clk 0:02:53.5]} 12. Nxd4 {[%clk 0:03:05]} 12... Qc7 {[%clk
0:02:49.8]} 13. Nf1 {[%clk 0:02:43.3]} 13... Rfe8 {[%clk 0:02:46.8]} 14. h4
{[%clk 0:02:41.4]} 14... Bf8 {[%clk 0:02:39.6]} 15. Nh2 {[%clk 0:02:41.6]} 15...
Rad8 {[%clk 0:02:34.2]} 16. Ng4 {[%clk 0:02:40]} 16... Nxg4 {[%clk 0:02:29.5]}
17. Qxg4 {[%clk 0:02:40.9]} 17... Nf6 {[%clk 0:02:23.2]} 18. Qe2 {[%clk
0:02:38.4]} 18... h6 {[%clk 0:02:15.6]} 19. g4 {[%clk 0:02:27.1]} 19... e5
{[%clk 0:01:54.3]} 20. Nf5 {[%clk 0:02:08.6]} 20... d5 {[%clk 0:01:51.2]} 21. g5
{[%clk 0:02:07.1]} 21... Nxe4 {[%clk 0:01:49.4]} 22. Bxe4 {[%clk 0:02:06.9]}
22... dxe4 {[%clk 0:01:47.4]} 23. gxh6 {[%clk 0:02:07.1]} 23... g6 {[%clk
0:01:47]} 24. Ng3 {[%clk 0:02:02.1]} 24... f5 {[%clk 0:01:32.5]} 25. h5 {[%clk
0:02:02]} 25... Qc6 {[%clk 0:01:28.8]} 26. hxg6 {[%clk 0:01:47]} 26... Qxg6
{[%clk 0:01:28]} 27. Qh5 {[%clk 0:01:47.4]} 27... Qxh5 {[%clk 0:01:20.8]} 28.
Nxh5 {[%clk 0:01:48.3]} 28... Kf7 {[%clk 0:01:18.8]} 29. Ng3 {[%clk 0:01:38.9]}
29... Ke6 {[%clk 0:01:12.7]} 30. Bg5 {[%clk 0:01:38.6]} 30... Be7 {[%clk
0:00:47]} 31. Bxe7 {[%clk 0:01:31.9]} 31... Rxe7 {[%clk 0:00:46.4]} 32. Rad1
{[%clk 0:01:32]} 32... Rxd1 {[%clk 0:00:41.5]} 33. Rxd1 {[%clk 0:01:32]} 33...
Rh7 {[%clk 0:00:41.1]} 34. Rd8 {[%clk 0:01:26.7]} 34... f4 {[%clk 0:00:29.7]}
35. Ne2 {[%clk 0:00:57.3]} 35... Rxh6 {[%clk 0:00:25.2]} 36. Rb8 {[%clk
0:00:55.9]} 36... Rh7 {[%clk 0:00:25.2]} 37. Re8+ {[%clk 0:00:54.8]} 37... Kf5
{[%clk 0:00:24]} 38. Rf8+ {[%clk 0:00:52.3]} 38... Kg4 {[%clk 0:00:22.5]} 39.
Kf1 {[%clk 0:00:51.3]} 39... e3 {[%clk 0:00:19.8]} 40. fxe3 {[%clk 0:00:50]}
40... Rh1+ {[%clk 0:00:17.7]} 41. Ng1 {[%clk 0:00:50]} 41... fxe3 {[%clk
0:00:16.5]} 42. Rg8+ {[%clk 0:00:46.2]} 42... Kf4 {[%clk 0:00:16.1]} 43. Rf8+
{[%clk 0:00:42.3]} 43... Ke4 {[%clk 0:00:15.7]} 44. Rb8 {[%clk 0:00:24.8]} 44...
Bd5 {[%clk 0:00:15]} 45. Rxb6 {[%clk 0:00:21.8]} 45... e2+ {[%clk 0:00:14.4]}
46. Kxe2 {[%clk 0:00:21]} 46... Rxg1 {[%clk 0:00:14.6]} 47. Kd2 {[%clk
0:00:21.2]} 47... Rg2+ {[%clk 0:00:14.4]} 48. Kc1 {[%clk 0:00:21.4]} 48... Kd3
{[%clk 0:00:14.7]} 49. b4 {[%clk 0:00:14]} 49... Kxc3 {[%clk 0:00:14.7]} 50. Kd1
{[%clk 0:00:14.3]} 50... Bf3+ {[%clk 0:00:14.5]} 51. Ke1 {[%clk 0:00:14.5]}
51... e4 {[%clk 0:00:14.7]} 52. Rxa6 {[%clk 0:00:13.9]} 52... e3 {[%clk
0:00:14.5]} 53. Kf1 {[%clk 0:00:12.6]} 53... e2+ {[%clk 0:00:13.7]} 54. Ke1
{[%clk 0:00:12.9]} 54... Rg1+ {[%clk 0:00:14]} 55. Kf2 {[%clk 0:00:13.8]} 55...
e1=Q+ {[%clk 0:00:14.2]} 56. Kxf3 {[%clk 0:00:14.7]} 56... Rg3+ {[%clk
0:00:14.1]} 57. Kf4 {[%clk 0:00:14.8]} 57... Qe3+ {[%clk 0:00:14.3]} 58. Kf5
{[%clk 0:00:15.3]} 58... Rg5+ {[%clk 0:00:14.5]} 59. Kf6 {[%clk 0:00:15.9]}
59... Qe5+ {[%clk 0:00:14.6]} 60. Kf7 {[%clk 0:00:16.3]} 60... Rg7+ {[%clk
0:00:14.6]} 61. Kf8 {[%clk 0:00:16.1]} 61... Qe7# {[%clk 0:00:14.6]} 0-1

[Event "*** Titled Tuesday Blitz"]
[Site "Chess.com"]
[Date "2021.04.20"]
[Round "1"]
[White "queen_iryna"]
[Black "blitzking1729"]
[Result "0-1"]
[WhiteElo "2336"]
[BlackElo "2639"]
[TimeControl "180+1"]
[EndTime "10:08:16 PDT"]
[Termination "blitzking1729 won on time"]

1. e4 {[%clk 0:02:59.2]} 1... d6 {[%clk 0:02:56.2]} 2. d4 {[%clk 0:02:58.6]}
2... Nf6 {[%clk 0:02:56.1]} 3. Nc3 {[%clk 0:02:58.7]} 3... e5 {[%clk 0:02:56.2]}
4. dxe5 {[%clk 0:02:40.7]} 4... dxe5 {[%clk 0:02:57.1]} 5. Qxd8+ {[%clk
0:02:41]} 5... Kxd8 {[%clk 0:02:57.3]} 6. Bg5 {[%clk 0:02:41.9]} 6... Be6 {[%clk
0:02:57.2]} 7. g3 {[%clk 0:02:41]} 7... Kc8 {[%clk 0:02:44.1]} 8. O-O-O {[%clk
0:02:36.6]} 8... Nbd7 {[%clk 0:02:39.7]} 9. f4 {[%clk 0:02:36]} 9... h6 {[%clk
0:02:37.1]} 10. Bh4 {[%clk 0:02:31.7]} 10... Bg4 {[%clk 0:02:35.9]} 11. Be2
{[%clk 0:02:24.7]} 11... Bc5 {[%clk 0:02:25.5]} 12. h3 {[%clk 0:02:04.9]} 12...
Bxe2 {[%clk 0:02:22.6]} 13. Ngxe2 {[%clk 0:02:05.8]} 13... g5 {[%clk 0:02:22.3]}
14. fxg5 {[%clk 0:01:59.6]} 14... Be3+ {[%clk 0:02:21.8]} 15. Kb1 {[%clk
0:01:59.3]} 15... hxg5 {[%clk 0:02:21.4]} 16. Rd3 {[%clk 0:01:55.6]} 16... gxh4
{[%clk 0:02:15.4]} 17. Rxe3 {[%clk 0:01:55.6]} 17... hxg3 {[%clk 0:02:14.5]} 18.
Rxg3 {[%clk 0:01:56.5]} 18... Kd8 {[%clk 0:02:07.8]} 19. h4 {[%clk 0:01:49.1]}
19... c6 {[%clk 0:02:05.1]} 20. Rg5 {[%clk 0:01:43.6]} 20... Ke7 {[%clk
0:02:02.5]} 21. Ng3 {[%clk 0:01:40.5]} 21... Rag8 {[%clk 0:01:56.4]} 22. Nf5+
{[%clk 0:01:35.9]} 22... Kf8 {[%clk 0:01:55.5]} 23. Rhg1 {[%clk 0:01:24.1]}
23... Rxg5 {[%clk 0:01:50.9]} 24. hxg5 {[%clk 0:01:25]} 24... Ng8 {[%clk
0:01:39.9]} 25. b4 {[%clk 0:01:20]} 25... Ne7 {[%clk 0:01:38.1]} 26. Nd6 {[%clk
0:01:11.6]} 26... b6 {[%clk 0:01:29.2]} 27. Rf1 {[%clk 0:01:10.7]} 27... Rh7
{[%clk 0:01:28.4]} 28. b5 {[%clk 0:01:03.2]} 28... cxb5 {[%clk 0:01:16.1]} 29.
Ncxb5 {[%clk 0:01:04.1]} 29... a6 {[%clk 0:01:09.8]} 30. Nc7 {[%clk 0:01:02.6]}
30... Nc5 {[%clk 0:01:09.3]} 31. Na8 {[%clk 0:00:39.3]} 31... b5 {[%clk
0:01:00.3]} 32. Nb6 {[%clk 0:00:37.3]} 32... Kg8 {[%clk 0:00:52.2]} 33. c4
{[%clk 0:00:29.4]} 33... Rg7 {[%clk 0:00:46.7]} 34. cxb5 {[%clk 0:00:23.2]}
34... axb5 {[%clk 0:00:44]} 35. Nxb5 {[%clk 0:00:21.5]} 35... Rxg5 {[%clk
0:00:34]} 36. Nd6 {[%clk 0:00:18]} 36... Rg6 {[%clk 0:00:33.3]} 37. Nbc4 {[%clk
0:00:17.9]} 37... f6 {[%clk 0:00:32.6]} 38. Kc2 {[%clk 0:00:17.7]} 38... Nc6
{[%clk 0:00:32]} 39. Rb1 {[%clk 0:00:16.3]} 39... Nd4+ {[%clk 0:00:31.5]} 40.
Kc3 {[%clk 0:00:12.7]} 40... Rg3+ {[%clk 0:00:27.9]} 41. Kb4 {[%clk 0:00:12.8]}
41... Nd3+ {[%clk 0:00:18.2]} 42. Ka5 {[%clk 0:00:10.4]} 42... Kf8 {[%clk
0:00:17.4]} 43. Rb8+ {[%clk 0:00:09.7]} 43... Ke7 {[%clk 0:00:17.5]} 44. Re8+
{[%clk 0:00:08.9]} 44... Kd7 {[%clk 0:00:17.4]} 45. Rf8 {[%clk 0:00:08.6]} 45...
Nc6+ {[%clk 0:00:16.4]} 46. Kb6 {[%clk 0:00:06.3]} 46... Ne7 {[%clk 0:00:12]}
47. Rxf6 {[%clk 0:00:05.7]} 47... Nb4 {[%clk 0:00:12.1]} 48. Kb5 {[%clk
0:00:05.4]} 48... Nxa2 {[%clk 0:00:11.6]} 49. Rf7 {[%clk 0:00:05.3]} 49... Nc3+
{[%clk 0:00:11.7]} 50. Kb6 {[%clk 0:00:04.5]} 50... Ke6 {[%clk 0:00:11.5]} 51.
Rh7 {[%clk 0:00:03.8]} 51... Rg6 {[%clk 0:00:11]} 52. Nf5 {[%clk 0:00:02.1]}
52... Nxf5 {[%clk 0:00:10.1]} 53. exf5+ {[%clk 0:00:03]} 53... Kxf5+ {[%clk
0:00:11]} 54. Kc5 {[%clk 0:00:03.3]} 54... Ne4+ {[%clk 0:00:11.1]} 55. Kd5
{[%clk 0:00:03]} 55... Nf6+ {[%clk 0:00:11.3]} 0-1

[Event "*** Titled Tuesday Blitz"]
[Site "Chess.com"]
[Date "2021.04.20"]
[Round "1"]
[White "ecwinslow"]
[Black "AlexPapasimakopoulos"]
[Result "0-1"]
[WhiteElo "2290"]
[BlackElo "2603"]
[TimeControl "180+1"]
[EndTime "10:08:18 PDT"]
[Termination "AlexPapasimakopoulos won by resignation"]

1. e4 {[%clk 0:03:00.9]} 1... e6 {[%clk 0:02:57.6]} 2. d4 {[%clk 0:03:00.3]}
2... d5 {[%clk 0:02:57.7]} 3. Nd2 {[%clk 0:03:00.2]} 3... Nf6 {[%clk 0:02:57.7]}
4. e5 {[%clk 0:02:59.9]} 4... Nfd7 {[%clk 0:02:58.4]} 5. Bd3 {[%clk 0:03:00.4]}
5... c5 {[%clk 0:02:59]} 6. c3 {[%clk 0:03:00.7]} 6... Nc6 {[%clk 0:02:59.8]} 7.
Ne2 {[%clk 0:03:00.9]} 7... cxd4 {[%clk 0:03:00.5]} 8. cxd4 {[%clk 0:03:01.5]}
8... f6 {[%clk 0:03:01.2]} 9. exf6 {[%clk 0:03:02.1]} 9... Nxf6 {[%clk
0:03:02.1]} 10. O-O {[%clk 0:03:01.4]} 10... Bd6 {[%clk 0:03:03]} 11. Nf3 {[%clk
0:03:00.8]} 11... Qc7 {[%clk 0:03:03.3]} 12. h3 {[%clk 0:02:53.1]} 12... O-O
{[%clk 0:03:03.2]} 13. Be3 {[%clk 0:02:53]} 13... Bd7 {[%clk 0:03:03.9]} 14. Re1
{[%clk 0:02:51.6]} 14... Be8 {[%clk 0:03:04.4]} 15. Ng5 {[%clk 0:02:50.1]} 15...
Bf7 {[%clk 0:03:04.5]} 16. Rc1 {[%clk 0:02:45.6]} 16... h6 {[%clk 0:02:59.2]}
17. Nxf7 {[%clk 0:02:40.9]} 17... Qxf7 {[%clk 0:03:00.1]} 18. a3 {[%clk
0:02:30.6]} 18... e5 {[%clk 0:02:58.8]} 19. dxe5 {[%clk 0:02:28.1]} 19... Bxe5
{[%clk 0:02:57]} 20. Qc2 {[%clk 0:02:08.3]} 20... Rac8 {[%clk 0:02:49.2]} 21. b4
{[%clk 0:02:00.4]} 21... Nxb4 {[%clk 0:02:41.4]} 22. Qxc8 {[%clk 0:01:48.8]}
22... Nxd3 {[%clk 0:02:41.2]} 23. Qf5 {[%clk 0:01:42.2]} 23... Nxc1 {[%clk
0:02:36.9]} 24. Nxc1 {[%clk 0:01:41]} 24... Bd6 {[%clk 0:02:20.1]} 25. Bxa7
{[%clk 0:01:34.5]} 25... Bxa3 {[%clk 0:02:19]} 26. Nd3 {[%clk 0:01:31.4]} 26...
Bd6 {[%clk 0:02:15.1]} 27. Bd4 {[%clk 0:01:30.4]} 27... Re8 {[%clk 0:02:13.2]}
28. Bxf6 {[%clk 0:01:25]} 28... Rxe1+ {[%clk 0:02:11.9]} 29. Nxe1 {[%clk
0:01:24.8]} 29... gxf6 {[%clk 0:02:11.6]} 30. Nc2 {[%clk 0:01:19.4]} 30... Be5
{[%clk 0:02:07.1]} 31. Ne3 {[%clk 0:01:17]} 31... d4 {[%clk 0:02:06.6]} 32. Ng4
{[%clk 0:01:16.3]} 32... Kg7 {[%clk 0:01:56.7]} 33. Nxe5 {[%clk 0:01:14.1]}
33... fxe5 {[%clk 0:01:57.1]} 34. Qxe5+ {[%clk 0:01:13.6]} 34... Qf6 {[%clk
0:01:55.3]} 35. Qc7+ {[%clk 0:01:12.7]} 35... Kg6 {[%clk 0:01:51.2]} 36. Qxb7
{[%clk 0:01:11.7]} 36... Qf4 {[%clk 0:01:37]} 37. g3 {[%clk 0:01:06.8]} 37...
Qe5 {[%clk 0:01:34.3]} 38. Kf1 {[%clk 0:01:00.9]} 38... Qc5 {[%clk 0:01:17.5]}
39. Qe4+ {[%clk 0:00:59.7]} 39... Kf6 {[%clk 0:01:17.6]} 40. Qd3 {[%clk
0:00:58.3]} 40... Qd5 {[%clk 0:01:14.8]} 41. Ke2 {[%clk 0:00:56.6]} 41... Qe6+
{[%clk 0:01:13.5]} 42. Kd2 {[%clk 0:00:55.8]} 42... Qa2+ {[%clk 0:01:12.6]} 43.
Ke1 {[%clk 0:00:55.3]} 43... Qa1+ {[%clk 0:01:06.8]} 44. Ke2 {[%clk 0:00:54.8]}
44... Ke5 {[%clk 0:01:04.3]} 45. Qb5+ {[%clk 0:00:50]} 45... Kd6 {[%clk
0:01:03]} 46. Qd3 {[%clk 0:00:45]} 46... Qb2+ {[%clk 0:00:57.3]} 47. Kf3 {[%clk
0:00:44.3]} 47... Qb7+ {[%clk 0:00:56.2]} 48. Kf4 {[%clk 0:00:39.8]} 48... Qf7+
{[%clk 0:00:54.2]} 49. Ke4 {[%clk 0:00:39.9]} 49... Qd5+ {[%clk 0:00:53.5]} 50.
Kf4 {[%clk 0:00:39.7]} 50... Qe5+ {[%clk 0:00:52.2]} 51. Kf3 {[%clk 0:00:39.1]}
51... Qd5+ {[%clk 0:00:49]} 52. Kf4 {[%clk 0:00:37.5]} 52... Kc5 {[%clk
0:00:49.4]} 53. g4 {[%clk 0:00:32.1]} 53... Qd6+ {[%clk 0:00:46.7]} 54. Kf3
{[%clk 0:00:28.3]} 54... Qd5+ {[%clk 0:00:44.6]} 55. Kf4 {[%clk 0:00:27.9]}
55... Qc4 {[%clk 0:00:36]} 56. Qf5+ {[%clk 0:00:26.5]} 56... Kb4 {[%clk
0:00:35.9]} 57. Qb1+ {[%clk 0:00:25.7]} 57... Qb3 {[%clk 0:00:35.7]} 58. Qe4
{[%clk 0:00:21.7]} 58... Kc3 {[%clk 0:00:33.8]} 59. Ke5 {[%clk 0:00:17.4]} 59...
Qb5+ {[%clk 0:00:32.5]} 60. Kf4 {[%clk 0:00:16.9]} 60... Qg5+ {[%clk 0:00:27.6]}
61. Kf3 {[%clk 0:00:16.6]} 61... Qf6+ {[%clk 0:00:24.2]} 62. Ke2 {[%clk
0:00:16.2]} 62... Qa6+ {[%clk 0:00:23.8]} 63. Kf3 {[%clk 0:00:15.8]} 63... d3
{[%clk 0:00:23.7]} 64. h4 {[%clk 0:00:14.3]} 64... Qf6+ {[%clk 0:00:20.4]} 65.
Ke3 {[%clk 0:00:12.4]} 65... Qb6+ {[%clk 0:00:20.8]} 66. Kf3 {[%clk 0:00:12.2]}
66... d2 {[%clk 0:00:21.2]} 67. Qe5+ {[%clk 0:00:09.2]} 67... Qd4 {[%clk
0:00:20.3]} 68. Qa5+ {[%clk 0:00:08.9]} 68... Kc2 {[%clk 0:00:20.1]} 69. Qa2+
{[%clk 0:00:08]} 69... Qb2 {[%clk 0:00:20.4]} 70. Qc4+ {[%clk 0:00:08]} 70...
Qc3+ {[%clk 0:00:20.4]} 0-1

[Event "*** Titled Tuesday Blitz"]
[Site "Chess.com"]
[Date "2021.04.20"]
[Round "1"]
[White "Zq1"]
[Black "starplatinum2030"]
[Result "0-1"]
[WhiteElo "2542"]
[BlackElo "2252"]
[TimeControl "180+1"]
[EndTime "10:08:18 PDT"]
[Termination "starplatinum2030 won on time"]

1. d4 {[%clk 0:02:58.5]} 1... Nf6 {[%clk 0:02:59.5]} 2. c4 {[%clk 0:02:57.4]}
2... e6 {[%clk 0:02:59.6]} 3. Nc3 {[%clk 0:02:56]} 3... Bb4 {[%clk 0:02:59.5]}
4. e3 {[%clk 0:02:55.9]} 4... O-O {[%clk 0:02:58.5]} 5. Bd3 {[%clk 0:02:55.8]}
5... c5 {[%clk 0:02:58.6]} 6. Ne2 {[%clk 0:02:54.8]} 6... d5 {[%clk 0:02:58.6]}
7. cxd5 {[%clk 0:02:54.2]} 7... exd5 {[%clk 0:02:57.6]} 8. a3 {[%clk 0:02:53.7]}
8... Bxc3+ {[%clk 0:02:52.6]} 9. bxc3 {[%clk 0:02:53]} 9... Bg4 {[%clk
0:02:52.6]} 10. f3 {[%clk 0:02:39.3]} 10... Bh5 {[%clk 0:02:52]} 11. Nf4 {[%clk
0:02:39.2]} 11... Bg6 {[%clk 0:02:49.4]} 12. Nxg6 {[%clk 0:02:39.1]} 12... hxg6
{[%clk 0:02:48.5]} 13. O-O {[%clk 0:02:38.5]} 13... Nc6 {[%clk 0:02:46.4]} 14.
a4 {[%clk 0:02:37.1]} 14... b6 {[%clk 0:02:41]} 15. Ba3 {[%clk 0:02:30.2]} 15...
Re8 {[%clk 0:02:39.2]} 16. Re1 {[%clk 0:02:28.9]} 16... Nd7 {[%clk 0:02:34]} 17.
Bb5 {[%clk 0:02:23.8]} 17... Re6 {[%clk 0:02:27.4]} 18. e4 {[%clk 0:02:22]}
18... cxd4 {[%clk 0:02:03.7]} 19. exd5 {[%clk 0:02:05]} 19... Rxe1+ {[%clk
0:02:02.7]} 20. Qxe1 {[%clk 0:02:05.5]} 20... Na5 {[%clk 0:02:01.5]} 21. cxd4
{[%clk 0:02:00.7]} 21... Nf6 {[%clk 0:01:52.8]} 22. d6 {[%clk 0:01:54.9]} 22...
a6 {[%clk 0:01:52.3]} 23. Bd3 {[%clk 0:01:46.5]} 23... Qd7 {[%clk 0:01:44.8]}
24. Qe7 {[%clk 0:01:20]} 24... Qxa4 {[%clk 0:01:35.1]} 25. Bb2 {[%clk
0:01:15.6]} 25... Qb3 {[%clk 0:01:28.8]} 26. Qe2 {[%clk 0:01:12.9]} 26... Rd8
{[%clk 0:01:21.3]} 27. Bxa6 {[%clk 0:01:09.4]} 27... Rxd6 {[%clk 0:01:17.9]} 28.
Rd1 {[%clk 0:01:06.2]} 28... Nd5 {[%clk 0:01:15.5]} 29. Bd3 {[%clk 0:00:59.1]}
29... Re6 {[%clk 0:01:11.3]} 30. Qc2 {[%clk 0:00:49.9]} 30... Qxc2 {[%clk
0:01:01.6]} 31. Bxc2 {[%clk 0:00:49.5]} 31... Ne3 {[%clk 0:01:00]} 32. Rc1
{[%clk 0:00:43.2]} 32... Nac4 {[%clk 0:00:45.9]} 33. Bc3 {[%clk 0:00:39.7]}
33... Nxc2 {[%clk 0:00:44.3]} 34. Rxc2 {[%clk 0:00:38.5]} 34... b5 {[%clk
0:00:43.9]} 35. Kf2 {[%clk 0:00:33.9]} 35... f6 {[%clk 0:00:40.3]} 36. Bb4
{[%clk 0:00:33]} 36... Kf7 {[%clk 0:00:35.3]} 37. d5 {[%clk 0:00:31.5]} 37...
Re5 {[%clk 0:00:35.5]} 38. d6 {[%clk 0:00:30.5]} 38... Ke6 {[%clk 0:00:35.3]}
39. f4 {[%clk 0:00:25.5]} 39... Re4 {[%clk 0:00:31.4]} 40. Kf3 {[%clk 0:00:23]}
40... f5 {[%clk 0:00:23.9]} 41. g4 {[%clk 0:00:19.1]} 41... Nxd6 {[%clk
0:00:22.2]} 42. Bxd6 {[%clk 0:00:16]} 42... Kxd6 {[%clk 0:00:22.4]} 43. gxf5
{[%clk 0:00:15.4]} 43... gxf5 {[%clk 0:00:22.4]} 44. Rg2 {[%clk 0:00:15.2]}
44... Re7 {[%clk 0:00:22.3]} 45. Rg5 {[%clk 0:00:13]} 45... Rf7 {[%clk
0:00:20.8]} 46. Ke3 {[%clk 0:00:13.2]} 46... Kc5 {[%clk 0:00:20.8]} 47. Kd3
{[%clk 0:00:13.3]} 47... b4 {[%clk 0:00:20.7]} 48. h4 {[%clk 0:00:10.3]} 48...
Kd5 {[%clk 0:00:20.8]} 49. h5 {[%clk 0:00:09.8]} 49... b3 {[%clk 0:00:18]} 50.
Kc3 {[%clk 0:00:09.5]} 50... Ke4 {[%clk 0:00:18.3]} 51. Kxb3 {[%clk 0:00:08.6]}
51... Kxf4 {[%clk 0:00:18.4]} 52. Rg2 {[%clk 0:00:08.9]} 52... Ke5 {[%clk
0:00:18.1]} 53. Re2+ {[%clk 0:00:07.5]} 53... Kf6 {[%clk 0:00:17.9]} 54. Rg2
{[%clk 0:00:06.9]} 54... f4 {[%clk 0:00:17.5]} 55. Kc4 {[%clk 0:00:06.4]} 55...
Rd7 {[%clk 0:00:17.5]} 56. Rg1 {[%clk 0:00:02.7]} 56... Kf5 {[%clk 0:00:17.7]}
57. Kc5 {[%clk 0:00:02.5]} 57... f3 {[%clk 0:00:17.7]} 58. Kc6 {[%clk
0:00:02.5]} 58... Rf7 {[%clk 0:00:17]} 59. Kd5 {[%clk 0:00:02.1]} 59... f2
{[%clk 0:00:14.5]} 0-1